bitfinex-derivatives/quotes_ETHF0:USTF0_20251013
["timestamp","ask_amount","ask_price","bid_price","bid_amount"]
[1760332916378,0.2112,4129.2,4129.1,0.7807]
[1760332916586,3.2078,4129.8,4129.2,0.3379]
[1760332916793,3.6315,4129.8,4129.7,0.5497]
[1760332918093,3.6315,4129.8,4129.7,0.3379]
[1760332918494,3.7965,4129.8,4129.7,0.3379]
[1760332919594,0.5887,4129.8,4129.7,0.3379]
[1760332921701,0.2112,4129.8,4129.7,0.7807]
[1760332922089,0.4237,4129.8,4129.7,0.5497]
[1760332922891,0.2112,4129.6,4129.1,0.3379]
[1760332923088,3.419,4129.9,4129.8,0.5497]
[1760332923294,3.2078,4129.9,4129.8,0.7807]
[1760332923795,0.00258092,4130.2,4130.1,0.4428]
[1760332923993,2.05228093,4130.5,4130.2,0.3379]
[1760332924190,3.2078,4131.1,4131.0,0.9177]
[1760332924899,3.419,4131.1,4131.0,0.9177]
[1760332925098,3.42087797,4131.1,4131.0,0.91977689]
[1760332925499,3.63337797,4131.1,4131.0,0.91977689]
[1760332925700,3.79837797,4131.1,4131.0,0.33997689]
[1760332925904,3.63337797,4131.1,4131.0,0.33997689]
[1760332926304,3.63337797,4131.1,4131.0,0.00207689]
[1760332926305,3.79837797,4131.1,4131.0,0.00207689]
[1760332926907,0.4237,4129.9,4129.8,0.3379]
[1760332927805,0.4237,4129.9,4129.8,0.34069538]
[1760332928603,0.5887,4129.9,4129.8,0.00279538]
[1760332931706,3.76837303,4129.9,4129.8,0.00279538]
[1760332933304,3.2078,4130.3,4130.0,0.137]
[1760332933506,3.419,4130.3,4130.2,0.5497]
[1760332933707,3.419,4130.3,4130.2,0.7807]
[1760332934103,3.2078,4130.3,4130.2,0.7807]
[1760332934309,3.2078,4130.3,4130.2,0.3379]
[1760332938312,0.1654,4130.2,4129.8,0.00279538]
[1760332938510,3.2078,4130.3,4129.9,0.3353]
[1760332938710,0.1654,4130.2,4129.9,0.3353]
[1760332939116,3.2078,4130.3,4129.9,0.3353]
[1760332939317,0.612,4129.9,4129.8,0.00279538]
[1760332939716,0.612,4129.9,4129.8,0.33809538]
[1760332940618,0.4466,4129.9,4129.8,0.56019538]
[1760332941413,3.2078,4130.3,4130.0,0.1329]
[1760332941616,3.2078,4130.3,4130.2,0.4512]
[1760332941921,3.426,4130.3,4130.2,0.7865]
[1760332942620,3.426,4130.3,4130.0,0.1329]
[1760332942621,3.8198,4130.3,4130.0,0.4682]
[1760332942923,0.4466,4130.1,4130.0,0.6903]
[1760332943412,0.4466,4130.1,4130.0,0.9194]
[1760332943613,0.1654,4130.0,4129.8,0.00279538]
[1760332943813,0.4466,4129.9,4129.8,0.00279538]
[1760332944115,0.4466,4129.9,4129.8,0.78929538]
[1760332944315,0.2182,4129.9,4129.8,0.78929538]
[1760332946023,0.4466,4129.9,4129.8,0.78929538]
[1760332946221,0.4466,4129.9,4129.8,0.33809538]
[1760332946825,0.612,4129.9,4129.8,0.33809538]
[1760332947123,0.612,4129.9,4129.8,0.00279538]
[1760332947521,3.69252047,4129.9,4129.8,0.00279538]
[1760332951828,3.69252047,4129.9,4129.8,0.33809538]
[1760332952417,0.2182,4129.9,4129.8,0.78929538]
[1760332952621,0.4466,4129.9,4129.8,0.78929538]
[1760332953129,0.612,4129.9,4129.8,0.00279538]
[1760332953629,3.81884019,4129.9,4129.8,0.00279538]
[1760332956123,0.4466,4128.9,4128.6,3.2078]
[1760332956328,0.612,4128.7,4128.6,3.2078]
[1760332956520,0.612,4128.7,4128.6,3.5431]
[1760332957130,0.612,4128.7,4128.6,3.54532212]
[1760332957325,3.2078,4129.2,4128.6,3.99652212]
[1760332957632,0.2182,4128.8,4128.7,0.7865]
[1760332959631,0.4466,4128.8,4128.7,0.7865]
[1760332960928,0.4466,4128.8,4128.7,0.5574]
[1760332962728,0.2182,4128.8,4128.7,0.7865]
[1760332962936,0.2182,4129.1,4129.0,0.5841]
[1760332963136,0.4466,4129.1,4129.0,0.9194]
[1760332965734,0.88222,4129.1,4129.0,0.9194]
[1760332966036,0.4466,4129.1,4129.0,0.9194]
[1760332966440,0.4466,4129.1,4129.0,0.6903]
[1760332966639,0.6121,4129.1,4129.0,0.6903]
[1760332967936,0.6121,4129.1,4129.0,0.4682]
[1760332968139,0.5909,4128.7,4128.6,0.00222212]
[1760332968433,0.4254,4128.7,4128.6,0.54822212]
[1760332970738,0.4254,4128.7,4128.6,0.76052212]
[1760332971039,0.86103,4129.1,4129.0,0.6778]
[1760332971840,1.02653,4129.1,4129.0,0.6778]
[1760332972740,0.5909,4129.1,4129.0,0.6778]
[1760332972929,0.4254,4129.1,4129.0,0.8901]
[1760332973129,0.1655,4129.3,4129.0,0.457]
[1760332973336,0.5909,4129.1,4129.0,0.89263]
[1760332973839,0.5909,4129.1,4129.0,0.457]
[1760332974140,0.4254,4129.1,4129.0,0.6778]
[1760332974642,0.5909,4129.1,4129.0,0.457]
[1760332975340,0.5909,4129.1,4128.6,1.73663304]
[1760332975341,1.02656,4128.7,4128.6,0.00222212]
[1760332975743,0.4254,4127.8,4127.7,3.2078]
[1760332976035,0.4254,4127.8,4127.7,3.7538]
[1760332976241,0.2096,4127.8,4127.7,3.9661]
[1760332976731,0.21252838,4127.8,4127.7,3.9689431]
[1760332977045,0.00292838,4127.8,4127.7,3.9689431]
[1760332977536,0.42832838,4127.8,4127.7,3.7566431]
[1760332978629,0.42832838,4127.8,4127.7,3.9689431]
[1760332979933,0.59162838,4127.8,4127.7,0.0028431]
[1760332981547,0.42832838,4127.8,4127.7,0.5488431]
[1760332983149,0.42832838,4127.8,4127.7,0.7611431]
[1760332983344,0.21252838,4127.8,4127.7,0.7611431]
[1760332983843,0.59162838,4127.8,4127.7,0.3280431]
[1760332984045,0.59162838,4127.8,4127.7,0.0028431]
[1760332984642,0.59162838,4127.8,4126.7,3.2078]
[1760332984643,0.1605,4127.7,4126.7,3.2078]
[1760332984853,3.12258864,4127.8,4126.7,3.2078]
[1760332984854,1.02176,4126.8,4126.7,3.2078]
[1760332985049,0.4359,4126.5,4126.3,0.3252]
[1760332985348,0.4254,4126.8,4126.2,3.2078]
[1760332985349,1.02182,4126.3,4126.2,3.2078]
[1760332985646,1.02182,4126.3,4126.2,3.21053663]
[1760332986343,1.02182,4126.3,4126.2,3.53573663]
[1760332986544,0.43589,4126.6,4126.4,0.3252]
[1760332986750,0.4254,4126.6,4126.5,0.8901]
[1760332986950,1.08947,4127.6,4126.5,0.8901]
[1760332986951,3.21916641,4126.9,4126.8,0.86896]
[1760332987148,3.3683,4127.5,4126.8,0.86896]
[1760332987349,0.2096,4127.0,4126.9,0.7583]
[1760332987549,0.4254,4127.0,4126.9,0.7583]
[1760332987750,0.2096,4127.4,4127.3,0.65661]
[1760332987946,0.4254,4127.4,4127.3,0.7583]
[1760332988245,0.00292838,4127.8,4127.7,0.546]
[1760332988246,0.42832838,4127.8,4127.7,0.546]
[1760332988440,0.42832838,4127.8,4127.0,0.1318]
[1760332988441,0.4254,4127.3,4127.2,0.98181]
[1760332988841,0.2096,4127.3,4127.2,1.19411]
[1760332989046,0.2096,4127.6,4127.5,1.11358]
[1760332989249,0.4254,4127.6,4127.5,0.6778]
[1760332989950,0.2096,4127.6,4127.5,0.8901]
[1760332992149,0.00292838,4127.8,4127.7,0.2208]
[1760332992351,0.00292838,4127.8,4127.7,0.7583]
[1760332992741,0.43567,4128.7,4127.7,0.7583]
[1760332992742,3.4174,4128.7,4128.6,0.2208]
[1760332992942,3.2078,4128.7,4128.6,0.7583]
[1760332993244,0.0306,4129.5,4128.5,0.1318]
[1760332993245,0.2096,4129.4,4129.3,0.4331]
[1760332993954,0.58835168,4129.4,4129.3,0.00222321]
[1760332994154,0.42785168,4129.4,4129.3,0.54822321]
[1760332995347,0.21205168,4129.4,4129.3,0.76052321]
[1760332995851,0.42785168,4129.4,4129.3,0.76052321]
[1760332996046,1.02394168,4129.4,4129.3,0.00222321]
[1760332996251,1.02394168,4129.4,4126.3,2.17955]
[1760332996252,0.4254,4128.3,4128.0,3.77533]
[1760332996450,0.59619,4128.5,4128.3,0.3244]
[1760332996652,0.59619,4128.5,4128.2,0.43571]
[1760332997159,0.59619,4128.5,4128.4,0.3244]
[1760332997348,0.59619,4128.5,4128.4,0.32637344]
[1760332997545,3.37075168,4129.4,4128.9,0.43563]
[1760332997749,0.4356,4129.3,4129.0,0.57443]
[1760332998056,0.4356,4129.3,4129.1,0.3244]
[1760332998245,0.4356,4129.3,4129.0,0.57443]
[1760332998446,3.21025168,4129.4,4129.2,0.3244]
[1760332998646,3.21025168,4129.4,4129.3,0.3244]
[1760333001659,3.21025168,4129.4,4129.0,0.57442]
[1760333001660,0.1605,4129.3,4129.1,0.3244]
[1760333001858,0.4607,4129.2,4129.1,0.3244]
[1760333002058,0.4607,4129.2,4128.6,3.2078]
[1760333002059,0.43566,4128.8,4128.6,3.2078]
[1760333002256,0.4607,4128.7,4128.6,3.5322]
[1760333003061,0.4607,4128.7,4128.6,0.3244]
[1760333004459,0.4607,4128.7,4128.6,0.5333]
[1760333005254,0.4607,4128.7,4128.6,0.3244]
[1760333005954,0.4607,4128.7,4128.6,0.5333]
[1760333006952,0.4607,4128.7,4128.6,0.7517]
[1760333007953,0.4607,4128.7,4128.6,0.3244]
[1760333008961,0.4607,4128.7,4128.6,0.5333]
[1760333009162,0.2304,4128.7,4128.6,0.7517]
[1760333009557,0.43564,4129.0,4128.9,0.7517]
[1760333009558,0.66604,4129.0,4128.9,0.7517]
[1760333009769,0.89634,4129.0,4128.9,0.7517]
[1760333010364,0.89634,4129.0,4128.9,0.5333]
[1760333010554,0.66607,4128.6,4128.5,0.4632]
[1760333010755,0.1605,4128.5,4128.4,0.00197344]
[1760333010956,0.89637,4128.6,4128.5,0.3244]
[1760333010957,1.05687,4128.6,4128.5,0.3244]
[1760333011267,0.6212,4128.5,4128.4,0.00197344]
[1760333011451,0.6212,4128.5,4128.4,0.32637344]
[1760333012357,0.6212,4128.5,4128.4,0.00197344]
[1760333012759,0.686,4128.5,4128.4,0.00197344]
[1760333013364,0.6212,4128.5,4128.4,0.00197344]
[1760333015667,0.43567,4128.6,4128.5,0.3477]
[1760333015668,0.89637,4128.6,4128.5,0.3477]
[1760333015862,0.89637,4128.6,4128.5,0.6721]
[1760333016963,0.1605,4128.5,4128.4,0.00197344]
[1760333017164,0.6212,4128.5,4128.4,0.00197344]
[1760333019067,0.6212,4128.5,4128.4,0.32637344]
[1760333020770,0.6212,4127.6,4127.5,3.664]
[1760333021066,0.6212,4127.6,4127.5,3.2078]
[1760333021261,0.6212,4127.6,4127.5,3.5322]
[1760333021764,1.05698,4127.6,4127.5,3.53530742]
[1760333022570,1.05698,4127.6,4127.5,3.21090742]
[1760333024164,0.43585,4126.9,4126.8,1.73441092]
[1760333024362,0.43589,4126.5,4126.4,3.2078]
[1760333024570,1.03809,4126.5,4126.4,3.5386]
[1760333024966,0.87749,4126.5,4126.4,3.5386]
[1760333025166,0.88003654,4126.5,4126.4,3.5386]
[1760333025359,0.44414654,4126.5,4126.4,3.7614267]
[1760333025562,0.44414654,4126.5,4126.4,3.9911267]
[1760333025963,0.60474654,4126.5,4126.4,3.5403267]
[1760333026164,0.60474654,4126.5,4126.4,3.2095267]
[1760333028468,0.60474654,4126.5,4126.4,0.0017267]
[1760333028667,3.70869008,4126.5,4126.4,0.0017267]
[1760333030468,0.44414654,4126.5,4126.4,0.3363267]
[1760333030668,0.60474654,4126.5,4126.4,0.0017267]
[1760333031366,3.7450622,4126.5,4126.4,0.0017267]
[1760333032067,1.04525,4126.0,4125.9,3.2078]
[1760333032967,0.2214,4125.6,4125.5,0.6851]
[1760333033168,0.6093,4125.6,4125.5,0.00196428]
[1760333033471,7.34226552,4125.6,4125.5,0.00196428]
[1760333034269,6.90627552,4125.6,4125.5,0.00196428]
[1760333034468,3.8171,4125.6,4125.5,0.47096428]
[1760333034679,3.8171,4125.6,4125.5,0.33656428]
[1760333036369,3.6582,4125.6,4125.5,0.47096428]
[1760333036871,0.4504,4125.6,4125.5,1.35016428]
[1760333037368,0.229,4125.8,4125.7,0.87917]
[1760333037676,0.229,4125.8,4125.7,1.21377]
[1760333040179,3.2078,4126.1,4125.7,0.4432]
[1760333040370,0.00254654,4126.5,4126.4,0.7778]
[1760333041076,0.23154654,4126.5,4126.4,0.7778]
[1760333041574,0.43591,4126.4,4126.1,0.3346]
[1760333041879,0.45294654,4126.5,4125.6,0.3346]
[1760333041880,0.4504,4125.8,4125.6,0.3346]
[1760333042188,3.10275609,4126.3,4125.9,0.43595]
[1760333042189,0.229,4126.0,4125.9,0.43595]
[1760333042375,0.229,4126.0,4125.9,0.98665]
[1760333042576,0.4504,4126.0,4125.9,0.98665]
[1760333043175,0.4504,4126.0,4125.9,0.5507]
[1760333043375,0.6093,4126.0,4125.9,0.3346]
[1760333043873,0.88884654,4126.5,4126.4,0.5507]
[1760333044176,0.43592,4126.3,4126.0,0.57034]
[1760333044373,0.4504,4126.2,4126.1,0.5507]
[1760333044672,0.23154654,4126.5,4126.4,0.87911]
[1760333044878,0.23154654,4126.5,4126.4,0.7778]
[1760333047077,0.00254654,4126.5,4126.4,0.7778]
[1760333049177,0.23154654,4126.5,4126.4,0.7778]
[1760333049975,0.00254654,4126.5,4126.4,0.7778]
[1760333050378,0.23154654,4126.5,4126.4,0.7778]
[1760333050579,0.1589,4126.4,4126.0,3.3422]
[1760333050777,0.6093,4126.1,4126.0,3.6768]
[1760333051083,0.4504,4126.1,4126.0,3.8929]
[1760333051674,0.4504,4126.1,4126.0,0.6851]
[1760333052379,0.6093,4126.1,4126.0,0.469]
[1760333052683,0.229,4126.1,4126.0,0.9122]
[1760333053183,0.4504,4126.1,4126.0,0.9122]
[1760333056987,0.4504,4126.1,4126.0,0.6851]
[1760333057280,0.43598,4125.7,4125.6,0.5309]
[1760333057488,1.02568,4125.7,4125.6,0.3192]
[1760333057990,0.4308,4125.7,4125.6,0.5309]
[1760333058288,0.4308,4125.7,4125.6,0.7551]
[1760333058987,0.43595,4126.0,4125.9,0.4359]
[1760333059179,0.64685,4126.0,4125.9,0.7551]
[1760333059379,0.86675,4126.0,4125.9,0.7551]
[1760333060882,0.1589,4126.3,4125.5,3.34416428]
[1760333060883,0.2109,4126.3,4126.2,1.19102]
[1760333062491,0.4308,4126.3,4126.2,1.19102]
[1760333067996,0.5897,4126.1,4126.0,0.4529]
[1760333068290,4.30009654,4126.5,4126.0,0.4529]
[1760333068291,3.21034654,4126.5,4126.4,0.5309]
[1760333068490,3.21034654,4126.5,4126.4,0.7551]
[1760333070099,0.00254654,4126.5,4126.4,0.7551]
[1760333070503,3.2078,4127.6,4127.5,0.8888]
[1760333070799,3.64358,4127.6,4127.5,0.4529]
[1760333071602,3.64654333,4127.6,4127.5,0.4529]
[1760333072199,3.64654333,4127.6,4127.5,0.6646]
[1760333072395,3.64654333,4127.6,4127.5,0.4529]
[1760333072703,3.64654333,4127.6,4127.0,0.1337]
[1760333072704,0.43583,4127.1,4127.0,0.4529]
[1760333073400,0.43583,4127.1,4127.0,0.6646]
[1760333074504,0.43583,4127.1,4126.7,0.3192]
[1760333074505,0.43586,4126.8,4126.7,0.3192]
[1760333076499,3.15560646,4126.8,4126.2,3.2078]
[1760333076705,0.43592,4126.3,4126.2,3.527]
[1760333077706,1.08977,4126.4,4125.8,0.3192]
[1760333078007,3.19092621,4126.3,4125.8,0.3192]
[1760333078205,0.43596,4125.9,4125.8,0.3192]
[1760333079606,0.43599,4125.6,4125.5,3.34346428]
[1760333079805,1.08982,4126.2,4125.5,3.34346428]
[1760333080006,1.08982,4126.2,4125.6,0.3192]
[1760333080205,3.20658309,4126.1,4125.6,0.3192]
[1760333080704,0.43598,4125.7,4125.6,0.3192]
[1760333082106,3.2078,4125.9,4125.8,0.3192]
[1760333082509,3.2078,4125.9,4125.6,0.3192]
[1760333082913,0.43597,4125.8,4125.6,0.3192]
[1760333083205,0.43599,4125.6,4125.5,0.13566428]
[1760333083713,0.43599,4125.6,4125.5,0.45486428]
[1760333083904,0.43599,4125.6,4125.5,0.66656428]
[1760333084304,0.43599,4125.6,4125.5,0.89076428]
[1760333084505,0.43598,4125.7,4125.5,1.32675428]
[1760333084705,0.43598,4125.7,4125.6,0.7723]
[1760333088113,0.43598,4125.7,4125.5,0.57165428]
[1760333088114,3.2078,4126.1,4126.0,0.91]
[1760333089012,3.2078,4126.7,4126.0,0.91]
[1760333089216,3.64367,4126.7,4126.6,0.7717]
[1760333091710,3.64367,4126.7,4126.6,0.3162]
[1760333091915,6.84217597,4126.7,4126.6,0.3162]
[1760333092111,3.2078,4126.7,4126.6,0.3162]
[1760333092311,3.2078,4126.7,4126.6,0.7717]
[1760333092914,3.2078,4127.3,4127.2,0.4555]
[1760333093211,3.2078,4127.3,4127.2,0.7717]
[1760333093413,0.00296333,4127.6,4127.5,1.34579]
[1760333095426,0.00296333,4127.6,4127.5,0.91]
[1760333098122,0.00296333,4127.6,4127.5,0.4545]
[1760333098522,0.00296333,4127.6,4127.5,0.91]
[1760333101927,0.00296333,4127.6,4127.5,0.4545]
[1760333103024,0.00296333,4127.6,4127.5,0.6784]
[1760333105633,0.00296333,4127.6,4127.5,0.91]
[1760333107130,0.43582,4127.2,4127.1,0.3162]
[1760333107729,0.43588,4126.6,4126.5,0.1383]
[1760333107929,6.35459086,4127.2,4127.0,0.1383]
[1760333108135,3.64363,4127.2,4127.0,0.3622]
[1760333108436,3.64363,4127.2,4127.1,0.3162]
[1760333108636,3.64363,4127.2,4127.1,0.5401]
[1760333108934,3.2078,4127.2,4127.1,0.7717]
[1760333109232,0.00296333,4127.6,4127.5,0.91]
[1760333111838,0.00296333,4127.6,4127.5,0.4545]
[1760333112437,0.00296333,4127.6,4127.0,0.1383]
[1760333112438,0.43582,4127.2,4127.0,0.4545]
[1760333112634,3.64362,4127.2,4127.0,0.1383]
[1760333112935,3.64362,4127.2,4127.0,0.4545]
[1760333114935,3.2078,4127.2,4126.5,0.1383]
[1760333115140,0.43588,4126.6,4126.5,0.1383]
[1760333115837,0.43592,4126.3,4126.2,0.3162]
[1760333116438,0.43594,4126.1,4126.0,0.466]
[1760333118246,0.43594,4126.1,4126.0,0.6795]
[1760333120037,0.43594,4126.1,4126.0,0.466]
[1760333121541,3.2078,4126.2,4126.1,0.3277]
[1760333121842,12.18942691,4128.3,4126.6,0.7581]
[1760333121843,3.64367,4126.7,4126.6,0.7581]
[1760333124747,3.2078,4126.7,4126.6,0.7581]
[1760333125242,3.2078,4126.7,4126.6,0.3277]
[1760333125447,3.2078,4126.7,4126.6,0.5412]
[1760333126142,0.43588,4126.6,4126.5,0.4542]
[1760333129549,0.43588,4126.6,4126.5,0.6677]
[1760333129745,0.43588,4126.6,4126.5,0.8846]
[1760333129951,3.64368,4126.7,4126.6,0.3277]
[1760333130145,3.64368,4126.7,4126.6,0.7581]
[1760333132552,3.2078,4126.7,4126.6,0.7581]
[1760333132854,0.00296333,4127.6,4127.2,0.7581]
[1760333132855,3.64362,4127.3,4127.2,0.7581]
[1760333133544,3.64362,4127.3,4127.2,0.3277]
[1760333133744,0.43583,4127.1,4127.0,0.4542]
[1760333133946,0.43583,4127.1,4127.0,0.8846]
[1760333134750,3.64361,4127.3,4127.1,0.3277]
[1760333135056,3.64361,4127.3,4127.2,0.7581]
[1760333135355,0.00296333,4127.6,4127.5,0.8846]
[1760333138747,0.00296333,4127.6,4127.5,1.32039]
[1760333138952,3.2078,4128.4,4128.2,0.43571]
[1760333139153,3.2078,4128.4,4128.3,0.7581]
[1760333139954,3.64345,4128.9,4128.8,0.4304]
[1760333140259,3.64527606,4128.9,4128.8,0.76045362]
[1760333140957,0.00182606,4128.9,4128.8,0.76045362]
[1760333144158,3.2078,4129.5,4129.4,0.7581]
[1760333144361,3.2078,4130.0,4129.9,0.7581]
[1760333145052,3.21067174,4130.0,4129.9,0.7581]
[1760333149663,8.94617748,4135.6,4131.0,0.9005]
[1760333149664,3.2078,4131.1,4131.0,0.9005]
[1760333150663,3.21034497,4131.1,4131.0,0.9005]
[1760333152661,3.21034497,4131.1,4131.0,0.4632]
[1760333152862,3.21034497,4131.1,4131.0,0.6797]
[1760333153056,3.21034497,4131.1,4131.0,0.9005]
[1760333155962,0.00254497,4131.1,4131.0,1.33592]
[1760333158762,0.00254497,4131.1,4131.0,0.9005]
[1760333159662,0.43535,4131.7,4131.6,0.4373]
[1760333159868,3.2078,4132.2,4132.1,0.4373]
[1760333160170,3.64309,4132.2,4132.1,0.7743]
[1760333160656,3.64503987,4132.2,4132.1,0.7770553]
[1760333164071,3.64503987,4132.2,4132.1,5.70851653]
[1760333164274,3.20974987,4132.2,4132.1,5.70851653]
[1760333164771,0.00194987,4132.2,4132.1,8.91631653]
[1760333164971,0.43524,4132.7,4132.6,0.7743]
[1760333165167,0.43524,4132.7,4132.6,5.70576123]
[1760333165663,0.43524,4132.7,4132.6,0.7743]
[1760333165961,0.43761215,4132.7,4132.6,0.7743]
[1760333166869,3.64541215,4132.7,4132.6,0.7743]
[1760333170677,3.64541215,4132.7,4132.6,0.337]
[1760333173676,3.64541215,4132.7,4132.6,0.5535]
[1760333174473,3.64541215,4132.7,4132.6,0.7743]
[1760333176881,3.64541215,4132.7,4132.6,0.5535]
[1760333177268,4.25228909,4132.7,4132.6,0.5535]
[1760333177983,3.64541215,4132.7,4132.6,0.7797]
[1760333178281,4.25247172,4132.7,4132.6,0.7797]
[1760333179480,4.25247172,4132.7,4132.6,0.337]
[1760333180782,1.04467172,4132.7,4132.6,0.337]
[1760333181477,1.04467172,4132.7,4132.5,0.1262]
[1760333181686,0.60705957,4132.6,4132.5,0.5838]
[1760333182282,0.60705957,4132.6,4132.5,0.924]
[1760333182688,0.43761215,4132.7,4132.6,0.7978]
[1760333184892,0.00237215,4132.7,4132.6,0.7978]
[1760333185188,0.022,4132.8,4132.7,0.89284]
[1760333185390,0.022,4132.8,4132.7,1.23304]
[1760333186280,0.02430425,4132.8,4132.7,1.23304]
[1760333187985,0.02430425,4132.8,4132.7,0.7978]
[1760333195294,3.2078,4133.3,4133.2,0.7978]
[1760333195295,3.64298,4133.3,4133.2,0.7978]
[1760333196182,3.6459941,4133.3,4133.2,0.7978]
[1760333204199,3.6459941,4133.3,4133.2,0.5716]
[1760333204601,3.6459941,4133.3,4133.2,0.7978]
[1760333208497,3.2108141,4133.3,4133.2,0.7978]
[1760333209003,0.0030141,4133.3,4133.2,0.7978]
[1760333209402,0.0030141,4133.3,4133.1,7.71916301]
[1760333209403,3.2078,4133.8,4133.7,0.7504]
[1760333209594,3.2078,4133.8,4133.7,2.45548402]
[1760333210404,3.21092206,4133.8,4133.7,2.45548402]
[1760333212401,3.21092206,4133.8,4133.7,0.7504]
[1760333215804,3.21092206,4133.8,4133.7,0.3154]
[1760333216004,0.43514,4133.7,4133.5,0.448]
[1760333216307,0.43514,4133.7,4133.6,0.3154]
[1760333219007,0.5674,4133.1,4133.0,0.1262]
[1760333219209,0.78224,4132.7,4132.6,1.73642188]
[1760333219506,0.78224,4132.7,4132.4,3.2078]
[1760333219507,0.347,4132.7,4132.4,3.2078]
[1760333219810,0.78224,4132.7,4132.4,3.2078]
[1760333220004,0.69964,4132.7,4132.6,0.2206]
[1760333220307,0.69964,4132.7,4132.4,3.2078]
[1760333220608,0.69964,4132.7,4132.6,0.2206]
[1760333220807,0.56739,4133.2,4133.1,0.435]
[1760333221008,1.31017195,4133.2,4133.1,0.435]
[1760333221206,0.69959,4133.2,4133.1,0.536]
[1760333221403,0.78219,4133.2,4133.1,0.3154]
[1760333221609,0.2644,4132.6,4132.5,1.83128402]
[1760333221808,0.2644,4132.6,4132.5,2.05188402]
[1760333222012,0.2644,4132.6,4132.5,2.26628402]
[1760333222312,0.69965,4132.6,4132.5,0.8766]
[1760333225309,0.69969,4132.2,4132.1,0.2233553]
[1760333225509,0.69969,4132.2,4132.1,0.5387553]
[1760333225706,0.78229,4132.2,4132.1,0.3181553]
[1760333225913,0.78229,4132.2,4132.1,0.0027553]
[1760333227409,3.88513111,4132.2,4132.1,0.0027553]
[1760333228204,0.43536,4131.6,4131.5,0.1326]
[1760333228408,0.43536,4131.6,4131.0,0.1326]
[1760333228409,0.2644,4131.1,4131.0,0.1326]
[1760333228609,0.2644,4131.1,4131.0,0.3532]
[1760333228808,0.2644,4131.1,4131.0,0.5676]
[1760333229011,0.2644,4131.1,4131.0,0.883]
[1760333229313,0.347,4131.1,4131.0,0.4499067]
[1760333230018,0.1322,4131.6,4131.5,0.5676]
[1760333230215,0.1322,4131.6,4131.5,0.883]
[1760333230612,0.2644,4131.6,4131.5,0.883]
[1760333233012,0.69981,4131.1,4131.0,0.4499067]
[1760333233218,0.78241,4131.1,4131.0,0.0019067]
[1760333233415,0.69981,4131.1,4131.0,0.6705067]
[1760333234022,0.78241,4131.1,4131.0,0.4499067]
[1760333234214,0.43541,4131.1,4131.0,0.8849067]
[1760333234819,0.56761,4131.1,4131.0,0.8849067]
[1760333235214,0.1322,4131.1,4131.0,0.8849067]
[1760333235413,3.2078,4131.2,4131.1,0.3154]
[1760333235414,3.6432,4131.2,4131.1,0.3154]
[1760333235614,3.7754,4131.2,4131.1,0.7504]
[1760333236020,3.34,4131.2,4131.1,0.7504]
[1760333236325,0.1322,4131.2,4131.1,0.7504]
[1760333237721,3.2904,4131.7,4131.0,0.5699167]
[1760333237722,3.2078,4131.7,4131.5,0.56056]
[1760333238025,3.2078,4132.2,4132.1,0.782]
[1760333238821,0.56875,4132.6,4132.5,0.3511]
[1760333239129,0.56875,4132.6,4132.5,0.9072]
[1760333239925,0.1335,4132.6,4132.5,0.9072]
[1760333242729,0.267,4132.6,4132.5,0.9072]
[1760333244031,0.7858,4132.1,4132.0,0.4662]
[1760333244234,0.267,4131.7,4131.6,0.5669]
[1760333244436,0.267,4131.7,4131.6,0.782]
[1760333244632,0.267,4131.7,4131.6,0.5669]
[1760333244933,0.267,4131.7,4131.3,3.2078]
[1760333244934,0.70238,4131.4,4131.3,3.2078]
[1760333245125,0.70238,4131.4,4131.3,3.7747]
[1760333245430,0.70238,4131.4,4131.3,3.9898]
[1760333245630,0.43536,4131.6,4131.5,0.9072]
[1760333245934,0.5688,4132.1,4132.0,0.9072]
[1760333246137,0.7023,4132.1,4132.0,0.9072]
[1760333246829,0.7023,4132.1,4131.5,0.9072]
[1760333246830,0.70236,4131.6,4131.5,0.9072]
[1760333247035,0.78586,4131.6,4131.5,0.4662]
[1760333247222,0.70238,4131.4,4131.3,3.5488]
[1760333247621,0.70238,4131.4,4131.3,3.7747]
[1760333248427,0.70238,4131.4,4131.3,3.2078]
[1760333248428,0.78588,4131.4,4131.3,3.2078]
[1760333248629,0.43538,4131.4,4131.3,3.9898]
[1760333248827,0.43537,4131.6,4131.3,3.9898]
[1760333249132,0.43537,4131.6,4131.5,0.9072]
[1760333249331,0.56887,4131.6,4131.5,0.9072]
[1760333250636,0.43537,4131.6,4131.5,0.9072]
[1760333250832,0.1335,4132.1,4132.0,0.5662]
[1760333251132,0.5688,4132.1,4132.0,0.9072]
[1760333251529,0.1335,4131.6,4131.5,0.1252]
[1760333251735,0.43533,4131.9,4131.5,0.5662]
[1760333252135,0.56884,4131.8,4131.7,0.441]
[1760333252331,0.70234,4131.8,4131.7,0.782]
[1760333252632,3.2078,4132.2,4131.5,0.4662]
[1760333252633,0.78586,4131.6,4131.5,0.4662]
[1760333252832,0.70236,4131.6,4131.5,0.6921]
[1760333253031,0.78586,4131.6,4131.5,0.4662]
[1760333253229,0.78586,4131.6,4131.5,0.341]
[1760333254337,0.70236,4131.6,4131.5,0.6921]
[1760333254837,3.91009,4132.2,4132.1,0.782]
[1760333255529,3.91009,4132.2,4132.1,0.5669]
[1760333256239,3.91009,4132.2,4132.1,0.782]
[1760333256535,3.91009,4132.2,4132.1,0.341]
[1760333256736,3.99359,4132.2,4132.1,0.341]
[1760333257237,3.91009,4132.2,4132.1,0.341]
[1760333258137,3.91009,4132.2,4132.1,0.5669]
[1760333258437,3.91009,4132.2,4132.1,0.782]
[1760333259330,3.91009,4132.2,4132.1,0.341]
[1760333259331,3.99359,4132.2,4132.1,0.341]